[Event "Titled Tuesday Blitz July 18 Early 2023"]
[White "Garakov, Mikhael"]
[Black "Samarth J Rao"]
[WhiteFideId "4169034"]
[BlackFideId "46652370"]
[WhiteElo "2519"]
[BlackElo "2270"]
[Result "1-0"]
[Round "5"]
[TimeControl "180+2"]
[Date "2023.07.18"]
[WhiteClock "0:00:05"]
[BlackClock "0:00:00"]
[Board "131"]

1. e4 {[%clk 0:03:00]}  c5 {[%clk 0:02:56]} 2. Nf3 {[%clk 0:03:00]}  e6 {[%clk 0:02:55]} 3. c4 {[%clk 0:02:57]}  Nc6 {[%clk 0:02:55]} 4. Nc3 {[%clk 0:02:57]}  Nd4 {[%clk 0:02:50]} 5. Be2 {[%clk 0:02:51]}  Nxe2 {[%clk 0:02:45]} 6. Qxe2 {[%clk 0:02:43]}  Ne7 {[%clk 0:02:46]} 7. O-O {[%clk 0:02:41]}  Nc6 {[%clk 0:02:46]} 8. d3 {[%clk 0:02:40]}  d6 {[%clk 0:02:36]} 9. h3 {[%clk 0:02:15]}  g6 {[%clk 0:02:33]} 10. a3 {[%clk 0:02:12]}  Bg7 {[%clk 0:02:33]} 11. Bd2 {[%clk 0:02:12]}  O-O {[%clk 0:02:33]} 12. Rab1 {[%clk 0:02:10]}  a5 {[%clk 0:02:27]} 13. Nb5 {[%clk 0:01:57]}  f5 {[%clk 0:02:23]} 14. Bc3 {[%clk 0:01:38]}  e5 {[%clk 0:02:22]} 15. Ne1 {[%clk 0:01:36]}  f4 {[%clk 0:02:15]} 16. f3 {[%clk 0:01:35]}  Ra6 {[%clk 0:01:47]} 17. b3 {[%clk 0:00:46]}  Qg5 {[%clk 0:01:04]} 18. Nc7 {[%clk 0:00:37]}  Bxh3 {[%clk 0:00:55]} 19. Nxa6 {[%clk 0:00:36]}  bxa6 {[%clk 0:00:56]} 20. Nc2 {[%clk 0:00:31]}  h5 {[%clk 0:00:38]} 21. b4 {[%clk 0:00:31]}  axb4 {[%clk 0:00:36]} 22. axb4 {[%clk 0:00:31]}  cxb4 {[%clk 0:00:28]} 23. Nxb4 {[%clk 0:00:31]}  Ne7 {[%clk 0:00:25]} 24. Nxa6 {[%clk 0:00:22]}  Bc8 {[%clk 0:00:26]} 25. Nc7 {[%clk 0:00:19]}  h4 {[%clk 0:00:25]} 26. Rb8 {[%clk 0:00:17]}  Nc6 {[%clk 0:00:25]} 27. Ra8 {[%clk 0:00:16]}  Qe7 {[%clk 0:00:23]} 28. Nd5 {[%clk 0:00:17]}  Qb7 {[%clk 0:00:22]} 29. Rfa1 {[%clk 0:00:17]}  h3 {[%clk 0:00:22]} 30. R8a6 {[%clk 0:00:10]}  Kf7 {[%clk 0:00:14]} 31. Nb4 {[%clk 0:00:06]}  Nxb4 {[%clk 0:00:09]} 32. Ra7 {[%clk 0:00:07]}  Nc6 {[%clk 0:00:04]} 33. Rxb7+ {[%clk 0:00:07]}  Bxb7 {[%clk 0:00:05]} 34. Qb2 {[%clk 0:00:07]}  Bc8 {[%clk 0:00:05]} 35. Qb6 {[%clk 0:00:06]}  Bd7 {[%clk 0:00:06]} 36. Qc7 {[%clk 0:00:05]}  Ke7 {[%clk 0:00:06]} 37. Ra6 {[%clk 0:00:05]}  Rc8 {[%clk 0:00:05]} 38. Qb7 {[%clk 0:00:06]}  Rb8 {[%clk 0:00:04]} 39. Qc7 {[%clk 0:00:05]}  Rc8 {[%clk 0:00:01]} 40. Rxc6 {[%clk 0:00:04]}  Rxc7 {[%clk 0:00:01]} 41. Rxc7 {[%clk 0:00:05]}  hxg2 {[%clk 0:00:02]} 42. Kxg2 {[%clk 0:00:05]}  Kd8 {[%clk 0:00:02]} 43. Ra7 {[%clk 0:00:05]}  Bf6 {[%clk 0:00:01]} 44. Bb4 {[%clk 0:00:05]}  Be7 {[%clk 0:00:01]} 45. Ra8+ {[%clk 0:00:06]}  Kc7 {[%clk 0:00:01]} 46. Rg8 {[%clk 0:00:06]}  g5 {[%clk 0:00:02]} 47. Rg7 {[%clk 0:00:06]}  Kd8 {[%clk 0:00:02]} 48. Rg6 {[%clk 0:00:07]}  Be8 {[%clk 0:00:01]} 49. Rh6 {[%clk 0:00:07]}  Kd7 {[%clk 0:00:02]} 50. Rh7 {[%clk 0:00:07]}  Ke6 {[%clk 0:00:02]} 51. Ba5 {[%clk 0:00:07]}  Bg6 {[%clk 0:00:01]} 52. Rh1 {[%clk 0:00:07]}  Bf6 {[%clk 0:00:01]} 53. Rc1 {[%clk 0:00:07]}  Be7 {[%clk 0:00:01]} 54. Bb4 {[%clk 0:00:07]}  Bh5 {[%clk 0:00:01]} 55. c5 {[%clk 0:00:08]}  dxc5 {[%clk 0:00:02]} 56. Bxc5 {[%clk 0:00:08]}  Bf6 {[%clk 0:00:02]} 57. Bb4 {[%clk 0:00:07]}  g4 {[%clk 0:00:03]} 58. Rc6+ {[%clk 0:00:07]}  Kf7 {[%clk 0:00:03]} 59. fxg4 {[%clk 0:00:07]}  Bxg4 {[%clk 0:00:04]} 60. Be1 {[%clk 0:00:06]}  f3+ {[%clk 0:00:04]} 61. Kg3 {[%clk 0:00:06]}  Bh5 {[%clk 0:00:04]} 62. Bf2 {[%clk 0:00:05]}  Bg5 {[%clk 0:00:04]} 63. Rc5 {[%clk 0:00:04]}  Ke6 {[%clk 0:00:02]} 64. Kh3 {[%clk 0:00:04]}  Bf4 {[%clk 0:00:01]} 65. Bg3 {[%clk 0:00:04]}  Be3 {[%clk 0:00:01]} 66. Rxe5+ {[%clk 0:00:04]}  Kf6 {[%clk 0:00:00]} 67. Rxh5 {[%clk 0:00:05]} 1-0


[Site "https://www.chess.com"]

[Event "Titled Tuesday Blitz July 18 Early 2023"]
[White "MFatigue"]
[Black "Luxama, Jacques Muller"]
[BlackFideId "11900113"]
[WhiteElo "2518"]
[BlackElo "2260"]
[Result "1-0"]
[Round "5"]
[TimeControl "180+2"]
[Date "2023.07.18"]
[WhiteClock "0:00:15"]
[BlackClock "0:00:00"]
[Board "132"]

1. e4 {[%clk 0:02:56]}  e6 {[%clk 0:02:01]} 2. d4 {[%clk 0:02:55]}  d5 {[%clk 0:02:01]} 3. Nc3 {[%clk 0:02:55]}  Bb4 {[%clk 0:02:00]} 4. e5 {[%clk 0:02:55]}  c5 {[%clk 0:01:59]} 5. a3 {[%clk 0:02:55]}  Bxc3+ {[%clk 0:02:00]} 6. bxc3 {[%clk 0:02:56]}  Nc6 {[%clk 0:02:00]} 7. Qg4 {[%clk 0:02:56]}  g6 {[%clk 0:02:00]} 8. Nf3 {[%clk 0:02:50]}  h6 {[%clk 0:01:58]} 9. h4 {[%clk 0:02:50]}  Qa5 {[%clk 0:01:52]} 10. Bd2 {[%clk 0:02:49]}  c4 {[%clk 0:01:43]} 11. Be2 {[%clk 0:02:33]}  Qa4 {[%clk 0:01:41]} 12. O-O {[%clk 0:02:29]}  Qxc2 {[%clk 0:01:38]} 13. Rfc1 {[%clk 0:02:29]}  Qe4 {[%clk 0:01:24]} 14. Qxe4 {[%clk 0:02:28]}  dxe4 {[%clk 0:01:24]} 15. Ne1 {[%clk 0:02:20]}  Na5 {[%clk 0:01:23]} 16. Rcb1 {[%clk 0:02:12]}  Bd7 {[%clk 0:01:22]} 17. Rb4 {[%clk 0:02:09]}  b5 {[%clk 0:01:17]} 18. a4 {[%clk 0:02:05]}  bxa4 {[%clk 0:01:12]} 19. Bxc4 {[%clk 0:02:01]}  Ne7 {[%clk 0:00:56]} 20. Bb5 {[%clk 0:01:35]}  Nb3 {[%clk 0:00:46]} 21. Ra2 {[%clk 0:01:20]}  Nxd2 {[%clk 0:00:40]} 22. Rxd2 {[%clk 0:01:21]}  Rb8 {[%clk 0:00:37]} 23. Bxd7+ {[%clk 0:01:19]}  Kxd7 {[%clk 0:00:38]} 24. Rxa4 {[%clk 0:01:20]}  Rb7 {[%clk 0:00:31]} 25. Nc2 {[%clk 0:01:15]}  Nd5 {[%clk 0:00:29]} 26. c4 {[%clk 0:01:12]}  Nc3 {[%clk 0:00:20]} 27. Ra1 {[%clk 0:01:06]}  Rc8 {[%clk 0:00:19]} 28. Ne3 {[%clk 0:01:03]}  Rcb8 {[%clk 0:00:13]} 29. Ra6 {[%clk 0:00:56]}  Rb2 {[%clk 0:00:10]} 30. Rxa7+ {[%clk 0:00:54]}  Ke8 {[%clk 0:00:09]} 31. Rxb2 {[%clk 0:00:44]}  Rxb2 {[%clk 0:00:10]} 32. d5 {[%clk 0:00:40]}  exd5 {[%clk 0:00:09]} 33. cxd5 {[%clk 0:00:40]}  Rd2 {[%clk 0:00:09]} 34. d6 {[%clk 0:00:31]}  Ne2+ {[%clk 0:00:09]} 35. Kh2 {[%clk 0:00:31]}  Nf4 {[%clk 0:00:09]} 36. Ng4 {[%clk 0:00:25]}  h5 {[%clk 0:00:08]} 37. Nf6+ {[%clk 0:00:25]}  Kf8 {[%clk 0:00:08]} 38. Ra8+ {[%clk 0:00:23]}  Kg7 {[%clk 0:00:07]} 39. Rg8+ {[%clk 0:00:21]}  Kh6 {[%clk 0:00:07]} 40. d7 {[%clk 0:00:22]}  Ne6 {[%clk 0:00:03]} 41. Rh8+ {[%clk 0:00:20]}  Kg7 {[%clk 0:00:03]} 42. Re8 {[%clk 0:00:15]}  e3 {[%clk 0:00:00]} 43. fxe3 {[%clk 0:00:15]} 1-0


[Site "https://www.chess.com"]

[Event "Titled Tuesday Blitz July 18 Early 2023"]
[White "Droin, Augustin"]
[Black "Vaglio Munoz, Jaime"]
[WhiteFideId "45105987"]
[BlackFideId "6500145"]
[WhiteElo "2517"]
[BlackElo "2248"]
[Result "1-0"]
[Round "5"]
[TimeControl "180+2"]
[Date "2023.07.18"]
[WhiteClock "0:00:28"]
[BlackClock "0:00:00"]
[Board "133"]

1. e4 {[%clk 0:03:00]}  c5 {[%clk 0:02:57]} 2. Nf3 {[%clk 0:03:00]}  Qa5 {[%clk 0:02:57]} 3. Nc3 {[%clk 0:02:56]}  a6 {[%clk 0:02:57]} 4. Be2 {[%clk 0:02:55]}  b5 {[%clk 0:02:56]} 5. O-O {[%clk 0:02:55]}  Bb7 {[%clk 0:02:57]} 6. d4 {[%clk 0:02:55]}  b4 {[%clk 0:02:55]} 7. Nd5 {[%clk 0:02:54]}  e6 {[%clk 0:02:55]} 8. Ne3 {[%clk 0:02:52]}  Bxe4 {[%clk 0:02:55]} 9. Nc4 {[%clk 0:02:52]}  Qc7 {[%clk 0:02:53]} 10. Re1 {[%clk 0:02:52]}  Nf6 {[%clk 0:02:52]} 11. Bg5 {[%clk 0:02:52]}  Bb7 {[%clk 0:02:20]} 12. Bd3 {[%clk 0:02:48]}  cxd4 {[%clk 0:02:18]} 13. Nxd4 {[%clk 0:02:45]}  Be7 {[%clk 0:02:17]} 14. Qe2 {[%clk 0:02:37]}  Nc6 {[%clk 0:02:15]} 15. Nxc6 {[%clk 0:02:26]}  Qxc6 {[%clk 0:02:14]} 16. f3 {[%clk 0:02:17]}  O-O {[%clk 0:02:12]} 17. Kh1 {[%clk 0:02:17]}  h6 {[%clk 0:02:10]} 18. Bh4 {[%clk 0:02:17]}  Qc5 {[%clk 0:02:05]} 19. Rad1 {[%clk 0:02:15]}  Qh5 {[%clk 0:01:54]} 20. Bg3 {[%clk 0:02:14]}  d6 {[%clk 0:01:45]} 21. Nxd6 {[%clk 0:02:14]}  Bxd6 {[%clk 0:01:39]} 22. Bxd6 {[%clk 0:02:15]}  Rfe8 {[%clk 0:01:38]} 23. Bxb4 {[%clk 0:02:13]}  Nd5 {[%clk 0:01:34]} 24. Bd2 {[%clk 0:02:10]}  e5 {[%clk 0:01:32]} 25. Qe4 {[%clk 0:02:09]}  g6 {[%clk 0:01:18]} 26. Ba5 {[%clk 0:01:43]}  Rab8 {[%clk 0:01:05]} 27. Qa4 {[%clk 0:01:26]}  Nf4 {[%clk 0:01:00]} 28. Be4 {[%clk 0:01:26]}  Qg5 {[%clk 0:00:57]} 29. Rd2 {[%clk 0:01:26]}  Bxe4 {[%clk 0:00:55]} 30. Qxe4 {[%clk 0:01:26]}  Rxb2 {[%clk 0:00:52]} 31. Bc3 {[%clk 0:01:26]}  Rxa2 {[%clk 0:00:50]} 32. g3 {[%clk 0:01:21]}  Ne6 {[%clk 0:00:43]} 33. Rd5 {[%clk 0:01:19]}  Rc8 {[%clk 0:00:31]} 34. Rxe5 {[%clk 0:01:18]}  Qe7 {[%clk 0:00:29]} 35. Qd3 {[%clk 0:01:08]}  Qc7 {[%clk 0:00:21]} 36. R1e3 {[%clk 0:00:42]}  Rd8 {[%clk 0:00:15]} 37. Qe2 {[%clk 0:00:40]}  Ra3 {[%clk 0:00:06]} 38. Bb2 {[%clk 0:00:32]}  Rxe3 {[%clk 0:00:05]} 39. Rxe3 {[%clk 0:00:33]}  Qc6 {[%clk 0:00:00]} 40. Ra3 {[%clk 0:00:28]} 1-0


[Site "https://www.chess.com"]

[Event "Titled Tuesday Blitz July 18 Early 2023"]
[White "Martin Barcelo, Carles"]
[Black "Tregubov, Pavel V."]
[WhiteFideId "24561444"]
[BlackFideId "4115341"]
[WhiteElo "2454"]
[BlackElo "2613"]
[Result "0-1"]
[Round "5"]
[TimeControl "180+2"]
[Date "2023.07.18"]
[WhiteClock "0:02:22"]
[BlackClock "0:02:18"]
[Board "137"]

1. e4 {[%clk 0:03:00]}  c5 {[%clk 0:02:58]} 2. Nc3 {[%clk 0:02:58]}  e6 {[%clk 0:02:58]} 3. d4 {[%clk 0:02:52]}  cxd4 {[%clk 0:02:58]} 4. Qxd4 {[%clk 0:02:53]}  Nc6 {[%clk 0:02:57]} 5. Qd3 {[%clk 0:02:54]}  Nf6 {[%clk 0:02:55]} 6. Bf4 {[%clk 0:02:54]}  Bb4 {[%clk 0:02:51]} 7. Ne2 {[%clk 0:02:54]}  d5 {[%clk 0:02:49]} 8. a3 {[%clk 0:02:48]}  Bxc3+ {[%clk 0:02:18]} 9. Nxc3 {[%clk 0:02:49]}  d4 {[%clk 0:02:19]} 10. Nb5 {[%clk 0:02:49]}  e5 {[%clk 0:02:18]} 11. Bg5 {[%clk 0:02:28]}  a6 {[%clk 0:02:18]} 12. Bxf6 {[%clk 0:02:22]}  gxf6 {[%clk 0:02:18]} 0-1


[Site "https://www.chess.com"]

[Event "Titled Tuesday Blitz July 18 Early 2023"]
[White "brm72"]
[Black "Zacurdajev, Dmitry"]
[BlackFideId "4196309"]
[WhiteElo "2589"]
[BlackElo "2422"]
[Result "0-1"]
[Round "5"]
[TimeControl "180+2"]
[Date "2023.07.18"]
[WhiteClock "0:00:00"]
[BlackClock "0:00:04"]
[Board "138"]

1. e4 {[%clk 0:03:00]}  c6 {[%clk 0:02:57]} 2. d4 {[%clk 0:03:00]}  d5 {[%clk 0:02:58]} 3. e5 {[%clk 0:03:00]}  c5 {[%clk 0:02:58]} 4. dxc5 {[%clk 0:03:00]}  e6 {[%clk 0:02:58]} 5. a3 {[%clk 0:02:54]}  Bxc5 {[%clk 0:02:57]} 6. Qg4 {[%clk 0:02:54]}  Ne7 {[%clk 0:02:51]} 7. b4 {[%clk 0:02:47]}  h5 {[%clk 0:02:42]} 8. Qh4 {[%clk 0:02:28]}  Bb6 {[%clk 0:02:37]} 9. Nf3 {[%clk 0:02:23]}  Nf5 {[%clk 0:02:18]} 10. Qf4 {[%clk 0:02:06]}  Nc6 {[%clk 0:02:03]} 11. Bb2 {[%clk 0:02:05]}  Qc7 {[%clk 0:01:48]} 12. Bd3 {[%clk 0:02:04]}  Nce7 {[%clk 0:01:48]} 13. Nc3 {[%clk 0:02:00]}  Ng6 {[%clk 0:01:37]} 14. Qg5 {[%clk 0:01:46]}  Nxe5 {[%clk 0:01:12]} 15. Bxf5 {[%clk 0:01:37]}  Nxf3+ {[%clk 0:01:09]} 16. gxf3 {[%clk 0:01:37]}  Qe5+ {[%clk 0:01:05]} 17. Kf1 {[%clk 0:01:06]}  Bd8 {[%clk 0:00:35]} 18. Qe3 {[%clk 0:00:59]}  Qxf5 {[%clk 0:00:31]} 19. Rg1 {[%clk 0:00:51]}  Qxc2 {[%clk 0:00:23]} 20. Nd1 {[%clk 0:00:37]}  Qc4+ {[%clk 0:00:17]} 21. Ke1 {[%clk 0:00:36]}  Bf6 {[%clk 0:00:15]} 22. Rc1 {[%clk 0:00:36]}  Qh4 {[%clk 0:00:10]} 23. Be5 {[%clk 0:00:22]}  Bd7 {[%clk 0:00:07]} 24. Rc7 {[%clk 0:00:18]}  Rd8 {[%clk 0:00:06]} 25. Nc3 {[%clk 0:00:16]}  Qh3 {[%clk 0:00:03]} 26. Qc5 {[%clk 0:00:08]}  Qf5 {[%clk 0:00:03]} 27. f4 {[%clk 0:00:04]}  Be7 {[%clk 0:00:04]} 28. Qe3 {[%clk 0:00:03]}  f6 {[%clk 0:00:04]} 29. Bd4 {[%clk 0:00:03]}  O-O {[%clk 0:00:04]} 30. Qg3 {[%clk 0:00:03]}  g6 {[%clk 0:00:04]} 31. Be3 {[%clk 0:00:04]}  Kf7 {[%clk 0:00:04]} 32. Ne2 {[%clk 0:00:04]}  Rg8 {[%clk 0:00:04]} 33. Nd4 {[%clk 0:00:05]}  Qb1+ {[%clk 0:00:04]} 34. Rc1 {[%clk 0:00:05]}  Qa2 {[%clk 0:00:05]} 35. f5 {[%clk 0:00:05]}  exf5 {[%clk 0:00:05]} 36. Qf3 {[%clk 0:00:05]}  Be6 {[%clk 0:00:05]} 37. Nxe6 {[%clk 0:00:05]}  Kxe6 {[%clk 0:00:06]} 38. Qf4 {[%clk 0:00:06]}  Kf7 {[%clk 0:00:06]} 39. Rc7 {[%clk 0:00:05]}  Rge8 {[%clk 0:00:05]} 40. Kf1 {[%clk 0:00:05]}  d4 {[%clk 0:00:05]} 41. Bxd4 {[%clk 0:00:05]}  Qd5 {[%clk 0:00:06]} 42. Bc5 {[%clk 0:00:04]}  Qd1+ {[%clk 0:00:06]} 43. Kg2 {[%clk 0:00:05]}  Qd5+ {[%clk 0:00:07]} 44. f3 {[%clk 0:00:05]}  Kf8 {[%clk 0:00:07]} 45. Kh3 {[%clk 0:00:04]}  Bxc5 {[%clk 0:00:07]} 46. Rxc5 {[%clk 0:00:03]}  Qd2 {[%clk 0:00:06]} 47. Qxd2 {[%clk 0:00:02]}  Rxd2 {[%clk 0:00:07]} 48. Rxg6 {[%clk 0:00:03]}  Ree2 {[%clk 0:00:08]} 49. Rxf6+ {[%clk 0:00:03]}  Ke7 {[%clk 0:00:08]} 50. Rfxf5 {[%clk 0:00:04]}  Rxh2+ {[%clk 0:00:09]} 51. Kg3 {[%clk 0:00:05]}  Rdg2+ {[%clk 0:00:09]} 52. Kf4 {[%clk 0:00:06]}  Rh4+ {[%clk 0:00:09]} 53. Ke3 {[%clk 0:00:06]}  b6 {[%clk 0:00:07]} 54. Rc7+ {[%clk 0:00:05]}  Ke6 {[%clk 0:00:07]} 55. Rff7 {[%clk 0:00:06]}  Rhh2 {[%clk 0:00:08]} 56. Rxa7 {[%clk 0:00:05]}  Re2+ {[%clk 0:00:07]} 57. Kf4 {[%clk 0:00:06]}  h4 {[%clk 0:00:08]} 58. Rfe7+ {[%clk 0:00:06]}  Kd6 {[%clk 0:00:08]} 59. Rh7 {[%clk 0:00:05]}  h3 {[%clk 0:00:07]} 60. Rag7 {[%clk 0:00:04]}  Kc6 {[%clk 0:00:08]} 61. Rg5 {[%clk 0:00:05]}  Rhg2 {[%clk 0:00:07]} 62. b5+ {[%clk 0:00:04]}  Kd6 {[%clk 0:00:06]} 63. Rh6+ {[%clk 0:00:04]}  Ke7 {[%clk 0:00:06]} 64. Rgh5 {[%clk 0:00:04]}  h2 {[%clk 0:00:05]} 65. Rh7+ {[%clk 0:00:04]}  Kd6 {[%clk 0:00:06]} 66. R7h6+ {[%clk 0:00:04]}  Re6 {[%clk 0:00:06]} 67. Rxe6+ {[%clk 0:00:02]}  Kxe6 {[%clk 0:00:06]} 68. Ke3 {[%clk 0:00:03]}  Kd6 {[%clk 0:00:06]} 69. f4 {[%clk 0:00:03]}  Ra2 {[%clk 0:00:07]} 70. Ke4 {[%clk 0:00:03]}  Rxa3 {[%clk 0:00:04]} 71. Rxh2 {[%clk 0:00:03]}  Kc5 {[%clk 0:00:05]} 72. Rh5+ {[%clk 0:00:03]}  Kc4 {[%clk 0:00:05]} 73. Re5 {[%clk 0:00:03]}  Ra1 {[%clk 0:00:05]} 74. Kf5 {[%clk 0:00:03]}  Rg1 {[%clk 0:00:05]} 75. Ke6 {[%clk 0:00:04]}  Kd4 {[%clk 0:00:06]} 76. f5 {[%clk 0:00:03]}  Rf1 {[%clk 0:00:06]} 77. f6 {[%clk 0:00:04]}  Rf2 {[%clk 0:00:05]} 78. Re1 {[%clk 0:00:03]}  Kc4 {[%clk 0:00:04]} 79. Ke7 {[%clk 0:00:03]}  Kxb5 {[%clk 0:00:04]} 80. f7 {[%clk 0:00:04]}  Kc4 {[%clk 0:00:04]} 81. f8=Q {[%clk 0:00:05]}  Rxf8 {[%clk 0:00:05]} 82. Kxf8 {[%clk 0:00:06]}  b5 {[%clk 0:00:06]} 83. Ke7 {[%clk 0:00:06]}  b4 {[%clk 0:00:06]} 84. Ke6 {[%clk 0:00:05]}  b3 {[%clk 0:00:07]} 85. Ke5 {[%clk 0:00:05]}  Kd3 {[%clk 0:00:08]} 86. Kd5 {[%clk 0:00:04]}  b2 {[%clk 0:00:08]} 87. Rh1 {[%clk 0:00:02]}  Kc2 {[%clk 0:00:08]} 88. Kc4 {[%clk 0:00:02]}  b1=Q {[%clk 0:00:09]} 89. Rh2+ {[%clk 0:00:03]}  Kc1 {[%clk 0:00:06]} 90. Kc3 {[%clk 0:00:01]}  Qe4 {[%clk 0:00:05]} 91. Rh1+ {[%clk 0:00:00]}  Qxh1 {[%clk 0:00:04]} 0-1


[Site "https://www.chess.com"]

[Event "Titled Tuesday Blitz July 18 Early 2023"]
[White "Gaal, Zsoka"]
[Black "Krutko, Anatoly"]
[WhiteFideId "777765"]
[BlackFideId "4185862"]
[WhiteElo "2419"]
[BlackElo "2587"]
[Result "1-0"]
[Round "5"]
[TimeControl "180+2"]
[Date "2023.07.18"]
[WhiteClock "0:00:17"]
[BlackClock "0:00:00"]
[Board "139"]

1. Nf3 {[%clk 0:03:00]}  d6 {[%clk 0:02:52]} 2. g3 {[%clk 0:02:59]}  g6 {[%clk 0:02:39]} 3. Bg2 {[%clk 0:02:54]}  Bg7 {[%clk 0:02:39]} 4. d4 {[%clk 0:02:54]}  Nf6 {[%clk 0:02:39]} 5. b3 {[%clk 0:02:53]}  a5 {[%clk 0:02:35]} 6. Bb2 {[%clk 0:02:51]}  a4 {[%clk 0:02:35]} 7. O-O {[%clk 0:02:51]}  O-O {[%clk 0:02:35]} 8. c4 {[%clk 0:02:49]}  Ne4 {[%clk 0:02:31]} 9. bxa4 {[%clk 0:02:32]}  Bd7 {[%clk 0:02:29]} 10. Qc2 {[%clk 0:02:31]}  f5 {[%clk 0:02:16]} 11. Nc3 {[%clk 0:02:12]}  Nxc3 {[%clk 0:02:15]} 12. Bxc3 {[%clk 0:02:11]}  Rxa4 {[%clk 0:02:09]} 13. Qb3 {[%clk 0:02:05]}  Ra7 {[%clk 0:02:02]} 14. a4 {[%clk 0:01:54]}  Nc6 {[%clk 0:01:54]} 15. a5 {[%clk 0:01:50]}  Qa8 {[%clk 0:01:38]} 16. c5+ {[%clk 0:01:38]}  Kh8 {[%clk 0:01:33]} 17. d5 {[%clk 0:01:35]}  Nxa5 {[%clk 0:01:27]} 18. Bxg7+ {[%clk 0:01:27]}  Kxg7 {[%clk 0:01:27]} 19. Qc3+ {[%clk 0:01:27]}  Rf6 {[%clk 0:01:28]} 20. Ra3 {[%clk 0:00:59]}  b6 {[%clk 0:01:22]} 21. c6 {[%clk 0:00:58]}  Be8 {[%clk 0:01:18]} 22. Nd4 {[%clk 0:00:58]}  Qc8 {[%clk 0:00:52]} 23. e4 {[%clk 0:00:49]}  fxe4 {[%clk 0:00:50]} 24. Ne6+ {[%clk 0:00:49]}  Kg8 {[%clk 0:00:49]} 25. Bh3 {[%clk 0:00:43]}  Bf7 {[%clk 0:00:46]} 26. Ng5 {[%clk 0:00:39]}  Qf8 {[%clk 0:00:42]} 27. Nxf7 {[%clk 0:00:33]}  Kxf7 {[%clk 0:00:39]} 28. Be6+ {[%clk 0:00:32]}  Ke8 {[%clk 0:00:32]} 29. Rb1 {[%clk 0:00:21]}  Rf3 {[%clk 0:00:29]} 30. Rxa5 {[%clk 0:00:17]}  Rxa5 {[%clk 0:00:00]} 31. Qxa5 {[%clk 0:00:17]} 1-0


[Site "https://www.chess.com"]

[Event "Titled Tuesday Blitz July 18 Early 2023"]
[White "Lana Rodriguez, David"]
[Black "ArturoCaceres"]
[WhiteFideId "2270803"]
[WhiteElo "2558"]
[BlackElo "2378"]
[Result "0-1"]
[Round "5"]
[TimeControl "180+2"]
[Date "2023.07.18"]
[WhiteClock "0:00:16"]
[BlackClock "0:00:04"]
[Board "143"]

1. e4 {[%clk 0:02:48]}  c5 {[%clk 0:02:50]} 2. Nf3 {[%clk 0:02:48]}  f6 {[%clk 0:02:48]} 3. d4 {[%clk 0:02:47]}  cxd4 {[%clk 0:02:49]} 4. Nxd4 {[%clk 0:02:48]}  Nc6 {[%clk 0:02:49]} 5. Bc4 {[%clk 0:02:47]}  e6 {[%clk 0:02:49]} 6. Be3 {[%clk 0:02:40]}  Kf7 {[%clk 0:02:46]} 7. Nc3 {[%clk 0:02:38]}  Nge7 {[%clk 0:02:46]} 8. O-O {[%clk 0:02:37]}  a6 {[%clk 0:02:44]} 9. a4 {[%clk 0:02:34]}  g6 {[%clk 0:02:41]} 10. f4 {[%clk 0:02:32]}  Qc7 {[%clk 0:02:38]} 11. Ba2 {[%clk 0:02:28]}  f5 {[%clk 0:02:34]} 12. exf5 {[%clk 0:02:23]}  gxf5 {[%clk 0:02:04]} 13. Qh5+ {[%clk 0:02:21]}  Kg7 {[%clk 0:02:02]} 14. Rf3 {[%clk 0:02:16]}  Ng6 {[%clk 0:00:58]} 15. Nxc6 {[%clk 0:02:13]}  dxc6 {[%clk 0:00:54]} 16. Bd4+ {[%clk 0:02:13]}  Kg8 {[%clk 0:00:55]} 17. Bxh8 {[%clk 0:02:12]}  Kxh8 {[%clk 0:00:54]} 18. Rd1 {[%clk 0:02:04]}  Bc5+ {[%clk 0:00:50]} 19. Kh1 {[%clk 0:02:03]}  Bd7 {[%clk 0:00:50]} 20. Rfd3 {[%clk 0:01:49]}  Nxf4 {[%clk 0:00:35]} 21. Qxh7+ {[%clk 0:01:31]}  Kxh7 {[%clk 0:00:32]} 22. Rxd7+ {[%clk 0:01:32]}  Qxd7 {[%clk 0:00:32]} 23. Rxd7+ {[%clk 0:01:33]}  Kg6 {[%clk 0:00:31]} 24. g3 {[%clk 0:01:31]}  Nd5 {[%clk 0:00:27]} 25. Rxb7 {[%clk 0:01:31]}  Kf6 {[%clk 0:00:21]} 26. Ne2 {[%clk 0:01:24]}  Rd8 {[%clk 0:00:19]} 27. Bxd5 {[%clk 0:01:16]}  cxd5 {[%clk 0:00:17]} 28. Rc7 {[%clk 0:01:13]}  Bd6 {[%clk 0:00:13]} 29. Rc6 {[%clk 0:01:13]}  Be5 {[%clk 0:00:14]} 30. c3 {[%clk 0:01:12]}  Rb8 {[%clk 0:00:13]} 31. b4 {[%clk 0:01:12]}  Ke7 {[%clk 0:00:11]} 32. Kg2 {[%clk 0:01:08]}  Ra8 {[%clk 0:00:10]} 33. Kf3 {[%clk 0:01:07]}  Kd7 {[%clk 0:00:10]} 34. Rb6 {[%clk 0:01:03]}  Bc7 {[%clk 0:00:11]} 35. a5 {[%clk 0:00:51]}  Bxb6 {[%clk 0:00:10]} 36. axb6 {[%clk 0:00:52]}  Rb8 {[%clk 0:00:10]} 37. h4 {[%clk 0:00:50]}  Rxb6 {[%clk 0:00:10]} 38. Kf4 {[%clk 0:00:48]}  Kd6 {[%clk 0:00:10]} 39. h5 {[%clk 0:00:47]}  Rb8 {[%clk 0:00:10]} 40. Kg5 {[%clk 0:00:46]}  Rg8+ {[%clk 0:00:10]} 41. Kf6 {[%clk 0:00:46]}  Rh8 {[%clk 0:00:09]} 42. Kg6 {[%clk 0:00:46]}  Ke7 {[%clk 0:00:08]} 43. h6 {[%clk 0:00:45]}  Rg8+ {[%clk 0:00:08]} 44. Kh5 {[%clk 0:00:46]}  Kf6 {[%clk 0:00:09]} 45. Nf4 {[%clk 0:00:44]}  Rg5+ {[%clk 0:00:08]} 46. Kh4 {[%clk 0:00:44]}  Rg4+ {[%clk 0:00:06]} 47. Kh3 {[%clk 0:00:44]}  e5 {[%clk 0:00:04]} 48. Nxd5+ {[%clk 0:00:38]}  Kg6 {[%clk 0:00:05]} 49. Ne7+ {[%clk 0:00:38]}  Kxh6 {[%clk 0:00:05]} 50. Nxf5+ {[%clk 0:00:39]}  Kg5 {[%clk 0:00:06]} 51. Nd6 {[%clk 0:00:36]}  Kh5 {[%clk 0:00:06]} 52. Kg2 {[%clk 0:00:32]}  Rg6 {[%clk 0:00:05]} 53. Nc4 {[%clk 0:00:32]}  Rc6 {[%clk 0:00:05]} 54. g4+ {[%clk 0:00:27]}  Kg5 {[%clk 0:00:04]} 55. Nxe5 {[%clk 0:00:24]}  Rxc3 {[%clk 0:00:05]} 56. Kf2 {[%clk 0:00:23]}  Rb3 {[%clk 0:00:05]} 57. Nc6 {[%clk 0:00:22]}  Kxg4 {[%clk 0:00:04]} 58. Ke2 {[%clk 0:00:22]}  Kf4 {[%clk 0:00:03]} 59. Kd2 {[%clk 0:00:23]}  Ke4 {[%clk 0:00:03]} 60. Kc2 {[%clk 0:00:23]}  Rh3 {[%clk 0:00:03]} 61. Kb2 {[%clk 0:00:21]}  Kd5 {[%clk 0:00:03]} 62. Na5 {[%clk 0:00:21]}  Rg3 {[%clk 0:00:03]} 63. Kc2 {[%clk 0:00:22]}  Kd6 {[%clk 0:00:03]} 64. Kb2 {[%clk 0:00:21]}  Kc7 {[%clk 0:00:04]} 65. Nc4 {[%clk 0:00:21]}  Kc6 {[%clk 0:00:04]} 66. Na3 {[%clk 0:00:20]}  Kb6 {[%clk 0:00:04]} 67. Ka2 {[%clk 0:00:19]}  Rh3 {[%clk 0:00:04]} 68. Kb2 {[%clk 0:00:20]}  Kc6 {[%clk 0:00:04]} 69. Ka2 {[%clk 0:00:18]}  Kd5 {[%clk 0:00:04]} 70. Kb2 {[%clk 0:00:18]}  Kd4 {[%clk 0:00:04]} 71. Kc2 {[%clk 0:00:18]}  Rxa3 {[%clk 0:00:03]} 72. Kb2 {[%clk 0:00:17]}  Rh3 {[%clk 0:00:04]} 73. Kc2 {[%clk 0:00:17]}  Kc4 {[%clk 0:00:04]} 74. b5 {[%clk 0:00:16]}  axb5 {[%clk 0:00:04]} 0-1


[Site "https://www.chess.com"]